Cogmind - Beta 10.2 @@@ ROGUE MODE // 2022.03.13 @ 12:00:39 Player: Jack Trades Result: Destroyed by G-34 Mercenary with Small Laser Performance ------------- Evolutions (1) 500 Regions Visited (4) 800 Robots Destroyed (9) 45 Value Destroyed (338) 338 Prototype IDs (8) 160 Alien Tech Used (0) 0 Bonus (200) 200 TOTAL SCORE: 2043 Bonus ------- Entered Garrisons 200 Cogmind --------- Core Integrity 0/400 Matter 145/300 Energy 92/100 System Corruption 1% Temperature Cool (6) Movement Flying (40) Location -9/Garrison Parts ------- > --- POWER (1) -------- (None) > --- PROPULSION (2) --- Flight Unit > --- UTILITY (4) ------ Visual Processing Unit Terrain Scan Processor > --- WEAPON (2) ------- (None) > --- INVENTORY (4) ---- Light Regenerative Plating Relay Coupler [NC] (28) Peak State ------------ > --- POWER ------------ Light Ion Engine > --- PROPULSION ------- Flight Unit VTOL Module > --- UTILITY ---------- Visual Processing Unit Sensor Array Light Regenerative Plating > --- WEAPON ----------- Assault Rifle Assault Rifle > --- INVENTORY -------- Flight Unit Flight Unit Flight Unit [Rating: 15] Favorites ----------- Power Ion Engine Engine Ion Engine Propulsion Hover Unit Leg Aluminum Leg Hover Unit Hover Unit Flight Unit Flight Unit Utility Sensor Array Device Sensor Array Storage Medium Storage Unit Processor Visual Processing Unit Protection Light Regenerative Plating Weapon Assault Rifle Energy Gun Improved Medium Laser Ballistic Gun Assault Rifle Build | -11 -10 -9 -9 -9 ------- Run | Scr Mat Mat Sto Gar Slots Evolved 2 | . . 2 . . Power . | . . . . . Propulsion . | . . . . . Utility 2 | . . 2 . . Weapon . | . . . . . Parts Attached 34 | 6 7 12 6 3 Power 5 | 1 . 2 2 . Engine 5 | 1 . 2 2 . Core . | . . . . . Reactor . | . . . . . Propulsion 15 | 2 2 7 1 3 Treads . | . . . . . Leg 4 | 2 . 2 . . Wheel . | . . . . . Hover 4 | . 2 2 . . Flight 7 | . . 3 1 3 Utility 7 | 1 3 1 2 . Device 1 | . 1 . . . Storage 3 | 1 2 . . . Processor 2 | . . 1 1 . Hackware . | . . . . . Protection 1 | . . . 1 . Artifact . | . . . . . Weapon 7 | 2 2 2 1 . Energy Gun 1 | . . . 1 . Energy Cannon . | . . . . . Ballistic Gun 6 | 2 2 2 . . Ballistic Cannon . | . . . . . Launcher . | . . . . . Special Weapon . | . . . . . Impact Weapon . | . . . . . Slashing Weapon . | . . . . . Piercing Weapon . | . . . . . Special Melee Weapon . | . . . . . Unidentified Prototypes 3 | . . . 3 . Parts Lost 8 | . . . 1 7 Power 1 | . . . . 1 Propulsion 5 | . . . 1 4 Utility 1 | . . . . 1 Weapon 1 | . . . . 1 Highest Loss Streak 6 | . . . 1 6 Average Slot Usage (%) 76 | . 89 83 72 57 Engine 10 | . 14 11 9 5 Leg 4 | . 14 . . . Hover 7 | . 13 12 . . Flight 10 | . . 9 22 18 Device 9 | . 9 11 11 7 Storage 6 | . 14 6 . . Processor 11 | . . 11 14 22 Energy Gun 1 | . . . 6 4 Ballistic Gun 14 | . 21 22 9 . Naked Turns . | . . . . . Heaviest Build 25 | 13 25 18 8 7 Greatest Support 20 | 20 20 12 9 9 Greatest Overweight (x) 2 | . 1 2 . 1 Average Overweight (x) . | . . . . . Largest Inventory Capacity 12 | 6 12 8 4 4 Average Capacity 5 | 5 8 6 4 4 Most Carried 7 | 4 6 7 4 4 Average Carried 3 | . 3 3 3 3 Final Capacity 8 | 6 8 4 4 4 Final Carried 4 | . 4 4 4 2 Class Distribution -------------------- 50% | Mutant 49% | Scavenger-Mutant Dominant Class ---------------- Mutant | -10/Materials Scavenger-Mutant | -9/Materials Scavenger-Mutant | -9/Storage Mutant | -9/Garrison Resources | -11 -10 -9 -9 -9 ----------- Run | Scr Mat Mat Sto Gar Matter Collected 459 | 201 88 170 . . Remotely . | . . . . . Salvage Created 178 | . 88 90 . . Parts 20 | . 7 13 . . Haulers Intercepted . | . . . . . Recyclers Shooed . | . . . . . Parts Field Recycled . | . . . . . Retrieved Matter . | . . . . . Parts Self-Destructed . | . . . . . Prevented . | . . . . . Kills | -11 -10 -9 -9 -9 ------- Run | Scr Mat Mat Sto Gar Combat Hostiles Destroyed 5 | . 1 4 . . Guns 5 | . 1 4 . . Classes Destroyed 4 | . 2 2 . . Operator 1 | . . 1 . . Watcher 3 | . 2 1 . . Swarmer 4 | . . 4 . . Grunt 1 | . 1 . . . Best Kill Streak 4 | . 1 4 . . Combat Bots Only 4 | . 1 4 . . Max Kills in Single Turn 1 | . 1 1 . . Gunslinging . | . . . . . Exploded . | . . . . . Melee . | . . . . . Uniques/NPCs Destroyed . | . . . . . Combat | -11 -10 -9 -9 -9 -------- Run | Scr Mat Mat Sto Gar Damage Taken 857 | . 11 225 36 585 Core 414 | . 11 39 . 364 Absorbed by Shields 33 | . . . . 33 Core Remaining (%) 97 | 100 95 . . . Volleys Fired 20 | . 7 12 . 1 Largest 2 | . 2 2 . 1 Hottest 56 | . 40 40 . 56 Shots Fired 39 | . 14 24 . 1 Gun 39 | . 14 24 . 1 Cannon . | . . . . . Launcher . | . . . . . Special . | . . . . . Kinetic 38 | . 14 24 . . Thermal 1 | . . . . 1 Explosive . | . . . . . Electromagnetic . | . . . . . Robot Hit Streak 7 | . 3 7 . . Robot Miss Streak 3 | . 1 3 . . Penetration Max . | . . . . . Secondary Targets 2 | . . 2 . . Max Gunslinging Chain 1 | . . 1 . . Shots Hit Robots 20 | . 8 12 . . Core Hits 11 | . 4 7 . . Critical Hits 1 | . 1 . . . Critical Kills . | . . . . . Critical Parts Destroyed 1 | . 1 . . . Melee Attacks . | . . . . . Impact . | . . . . . Slashing . | . . . . . Piercing . | . . . . . Sneak Attacks . | . . . . . Combat Hostiles . | . . . . . Follow-up Attacks . | . . . . . Damage Inflicted 263 | . 99 164 . . Guns 263 | . 99 164 . . Cannons . | . . . . . Explosions . | . . . . . Melee . | . . . . . Ramming . | . . . . . Kinetic 263 | . 99 164 . . Thermal . | . . . . . Explosive . | . . . . . Electromagnetic . | . . . . . Impact . | . . . . . Slashing . | . . . . . Piercing . | . . . . . Highest Corruption 1 | . . . 1 1 Average Corruption 1 | . . . 1 1 Corruption Purged . | . . . . . Effects 1 | . . . 1 . Energy Discharges 1 | . . . 1 . Overload Shots . | . . . . . Overflow Damage . | . . . . . Projectiles . | . . . . . Explosions . | . . . . . Melee . | . . . . . Knockbacks . | . . . . . Impact . | . . . . . Kinetic . | . . . . . Secondary . | . . . . . Self-Inflicted Damage . | . . . . . Shots . | . . . . . Rammed . | . . . . . Targets Rammed . | . . . . . Kicked . | . . . . . Crushed . | . . . . . Highest Temperature 14 | . 1 . . 14 Average Temperature 7 | . 1 . . 10 Received Heat Transfer 281 | . 6 27 . 248 Siege Activations . | . . . . . Robots Corrupted . | . . . . . Combat Hostiles . | . . . . . Parts Fried . | . . . . . Impact Corruptions . | . . . . . Robots Melted . | . . . . . Combat Hostiles . | . . . . . Parts Melted . | . . . . . Heat Transferred . | . . . . . Parts Sabotaged . | . . . . . Parts Stolen . | . . . . . Parts Stripped . | . . . . . Power Chain Reactions . | . . . . . Missiles Intercepted . | . . . . . Alert | -11 -10 -9 -9 -9 ------- Run | Scr Mat Mat Sto Gar Peak Influence 399 | . 123 273 123 399 Initial 115 | . . 51 115 79 Average 128 | . 49 134 116 238 Maximum Alert Level 1 | . . 1 . 1 Low Security (%) 79 | 100 100 92 100 35 Level 1 20 | . . 7 . 64 Level 2 . | . . . . . Level 3 . | . . . . . Level 4 . | . . . . . Level 5 . | . . . . . High Security . | . . . . . Max Security . | . . . . . Squads Dispatched 3 | . 1 . 2 . Investigation . | . . . . . Extermination . | . . . . . Reinforcement 1 | . 1 . . . Assault 2 | . . . 2 . Garrison . | . . . . . Intercept . | . . . . . Construction Impeded . | . . . . . Haulers Reinforced . | . . . . . Stealth | -11 -10 -9 -9 -9 --------- Run | Scr Mat Mat Sto Gar Distress Signals 1 | . . 1 . . Communications Jammed . | . . . . . Distress Signals . | . . . . . Times Spotted 50 | . 4 12 . 34 Peak Tracking Total 18 | . 1 6 . 18 Tactical Retreats 8 | . . 2 . 6 Traps | -11 -10 -9 -9 -9 ------- Run | Scr Mat Mat Sto Gar Traps Triggered 5 | . . . 1 4 Indirectly . | . . . . . Trap Hack Attempts . | . . . . . Triggered . | . . . . . Disarmed . | . . . . . Reprogrammed . | . . . . . Reused . | . . . . . Traps Extracted . | . . . . . Installed . | . . . . . Triggered . | . . . . . Machines | -11 -10 -9 -9 -9 ---------- Run | Scr Mat Mat Sto Gar Machines Disabled 1 | . . . . 1 Max in Single Turn 1 | . . . . 1 Garrison Relay 1 | . . . . 1 Machines Sabotaged . | . . . . . Garrisons Compromised . | . . . . . Overloaded Fab Kills . | . . . . . Fab Network Shutdowns . | . . . . . Hacking | -11 -10 -9 -9 -9 --------- Run | Scr Mat Mat Sto Gar Machines Accessed 13 | . 3 1 9 . Terminals 11 | . 3 1 7 . Fabricators . | . . . . . Repair Stations . | . . . . . Recycling Units 1 | . . . 1 . Scanalyzers . | . . . . . Garrison Access 1 | . . . 1 . Total Hacks 32 | . 16 1 15 . Successful 18 | . 7 . 11 . Failed 14 | . 9 1 4 . Catastrophic . | . . . . . Database Lockouts . | . . . . . Manual . | . . . . . Terminals 30 | . 16 1 13 . Fabricators . | . . . . . Repair Stations . | . . . . . Recycling Units 1 | . . . 1 . Scanalyzers . | . . . . . Garrison Access 1 | . . . 1 . Terminal Hacks 16 | . 7 . 9 . Prototype ID Bank 3 | . 2 . 1 . Open Door 2 | . . . 2 . Emergency Access Points 1 | . 1 . . . Alert Level 1 | . 1 . . . Locate Traps 5 | . 2 . 3 . Zone Layout 4 | . 1 . 3 . Fabricator Hacks . | . . . . . Repair Station Hacks . | . . . . . Recycling Unit Hacks 1 | . . . 1 . Report Inventory 1 | . . . 1 . Scanalyzer . | . . . . . Garrison Access Hacks 1 | . . . 1 . Unlock Access 1 | . . . 1 . Unauthorized Hacks . | . . . . . Terminals . | . . . . . Fabricators . | . . . . . Repair Stations . | . . . . . Recycling Units . | . . . . . Scanalyzers . | . . . . . Garrison Access . | . . . . . Data Cores Recovered 1 | . . 1 . . Used . | . . . . . Hacking Detections 9 | . 3 1 5 . Full Trace Events . | . . . . . Feedback Events . | . . . . . Feedback Blocked . | . . . . . Robot Schematics Acquired . | . . . . . Robots Built . | . . . . . Matter . | . . . . . Time . | . . . . . Total Robot Build Rating . | . . . . . Part Schematics Acquired . | . . . . . Parts Built . | . . . . . Matter . | . . . . . Time . | . . . . . Total Part Build Rating . | . . . . . Parts Repaired . | . . . . . Time . | . . . . . Parts Recycled . | . . . . . Recycled Matter . | . . . . . Retrieved Matter . | . . . . . Retrieved Components . | . . . . . Parts Scanalyzed . | . . . . . Part Schematics Acquired . | . . . . . Parts Damaged . | . . . . . Bothacking | -11 -10 -9 -9 -9 ------------ Run | Scr Mat Mat Sto Gar Used RIF Installer . | . . . . . Robots Hacked . | . . . . . Non-combat . | . . . . . Combat . | . . . . . Robot Hacks Applied . | . . . . . Relay Couplers Released 3 | . . . . 3 Machine Destruction 3 | . . . . 3 Robots Rewired . | . . . . . Allies Hacked . | . . . . . Hacks Repelled . | . . . . . Allies | -11 -10 -9 -9 -9 -------- Run | Scr Mat Mat Sto Gar Total Allies 2 | . . . 2 . Largest Group 2 | . . . 2 . Highest-Rated Group 62 | . . . 62 . Highest-Rated Ally 31 | . . . 31 . Total Orders . | . . . . . Ally Attacks . | . . . . . Total Damage . | . . . . . Kills . | . . . . . Allies Corrupted . | . . . . . Allies Melted . | . . . . . Intel | -11 -10 -9 -9 -9 ------- Run | Scr Mat Mat Sto Gar Robot Analysis Total . | . . . . . Derelict Logs Recovered . | . . . . . Drone Launches . | . . . . . Drone Recoveries . | . . . . . Exploration | -11 -10 -9 -9 -9 ------------- Run | Scr Mat Mat Sto Gar Turns Passed 856 | 73 232 236 69 246 Spaces Moved 1087 | 56 159 247 154 471 Core 19 | 10 . . . 9 Treads . | . . . . . Legs 127 | 46 81 . . . Wheels . | . . . . . Hover 152 | . 78 74 . . Flight 789 | . . 173 154 462 Fastest Speed 37 | 50 116 37 37 37 Average Speed 58 | 107 118 60 37 38 Slowest Speed 180 | 120 150 180 37 120 Overloaded Moves . | . . . . . Propulsion Burnouts . | . . . . . Robots Hopped 20 | . . 2 . 18 Cave-ins Triggered . | . . . . . Exploration Rate (%) 33 | 4 35 22 43 63 Regions Visited 4 Branch Regions 1 Pre-discovered Areas . | . . . . . Known Exits Taken 1 | . . . 1 . Unknown Exits Taken 3 | 1 1 1 . . Scrap Searched . | . . . . . Spaces Dug . | . . . . . Terrain Destroyed . | . . . . . Melee . | . . . . . Projectile . | . . . . . AOE . | . . . . . Terrain Rammed . | . . . . . Walls Destroyed . | . . . . . Machines Disabled . | . . . . . Actions | -11 -10 -9 -9 -9 --------- Run | Scr Mat Mat Sto Gar Total 1244 | 69 189 307 165 514 Wait 31 | 2 7 21 . 1 Move 1044 | 55 158 242 153 436 Hop 16 | . . 2 . 14 Pick Up 21 | 6 6 7 1 1 Fast Attach 4 | . . . 4 . Attach 18 | 6 4 3 2 3 Detach 7 | . 3 3 1 . Swap 12 | . 3 9 . . Drop 13 | . 1 8 4 . Fire 20 | . 7 12 . 1 Melee . | . . . . . Ram . | . . . . . Kick . | . . . . . Crush . | . . . . . Escape Stasis 58 | . . . . 58 Rewire . | . . . . . Trap . | . . . . . Miscellaneous . | . . . . . Route ------- -11/Scrapyard -10/Materials -9/Materials (discovered 2 exits: [*Mat] / *Sto) -9/Storage (discovered 2 exits: [Rec] / Gar) -9/Garrison (discovered 2 exits: [*Mat x2]) History --------- Turn | Location | Event 10 | -11/Scrapyard | Discovered new exit (range 15) 74 | -11/Scrapyard | Entered Materials 207 | -10/Materials | Discovered new exit (range 3) 305 | -10/Materials | Build established: Mutant 306 | -10/Materials | Entered another Materials area 306 | -9/Materials | Evolved 2 slots: Utility x2 510 | -9/Materials | Discovered new exit (range 18) 532 | -9/Materials | Discovered new exit (range 8) 542 | -9/Materials | Entered Storage 552 | -9/Storage | Found Prototype Protection 553 | -9/Storage | Identified Lgt. Regenerative Plating 573 | -9/Storage | Met a pair of Derelict thieves 592 | -9/Storage | Discovered new exit (range 9) 610 | -9/Storage | Identified exit to Garrison 611 | -9/Storage | Build established: Scavenger-Mutant 611 | -9/Storage | Entered Garrison 644 | -9/Garrison | Triggered checkpoint 694 | -9/Garrison | Triggered checkpoint 699 | -9/Garrison | Garrison Relay disabled 745 | -9/Garrison | Discovered new exit (range 8) 761 | -9/Garrison | Attempted to access garrison exit controls, blocked by remote lockdown 768 | -9/Garrison | Triggered checkpoint 797 | -9/Garrison | Discovered new exit (range 12) 802 | -9/Garrison | Attempted to access garrison exit controls, blocked by remote lockdown 811 | -9/Garrison | Lost 6 parts (1p3n1u1w) 819 | -9/Garrison | Core integrity fell below 50% 849 | -9/Garrison | Core integrity fell below 20% 857 | -9/Garrison | Destroyed by G-34 Mercenary with Small Laser Last Messages --------------- 00808_ Field strength at 85. 00809_ Field strength at 80. 00810_ Field strength at 75. 00811_ Field strength at 70. 00812_ Field strength at 65. 00813_ Field strength at 60. 00814_ Field strength at 55. 00815_ Field strength at 50. 00816_ Field strength at 45. 00817_ Field strength at 37. 00818_ Field strength at 32. 00819_ Field strength at 24. 00820_ Field strength at 19. 00821_ Field strength at 11. 00822_ Stasis field depleted. [Achievement: Cya!] 00846_ Flight Unit destroyed. Garrison Door activated. 00848_ C-30 ARC bursts open, deploying its payload. 00848_ S-10 Pest unfolds itself. Map ----- +----------------------------------------------------+ | ??# #######??????????# #??????# ##### ###?# #? | | ??# #????????????????# #??????# + + #? | | ??# #????????????????# ######## ##### ##### #? | | ??### #????????????????# ## ## #?????????# ## | | ????# ###?????????????## ## ## ##????????# | | ????# #"#?????????????# #????????#### | | ????# "#?????????????# #???????????? | | ????# "#?????????????#^ #???????????? | | ????# "#?????????????# ## ## #???????????? | | ????###"#???????????### ## ## ###?????????? | | ???????##???????????# " #?????????? | | ????????????????????# " #?????????? | | ????????????????????# #?????????? | | ????????????????????# "+%????????? | | ????????????????????###g ## ## #### ???????? | | ????????????########### ## ## #????#??????? | | ????????????# #???????????? | | ????????????# #???????????? | | ????????????# ######## #???????????? | | ????????????# #??????## ## ## #???????????? | | ????????????# #???????# ## ## #???????????? | | ????????????# #???????# ######## #???????????? | | ????????????# #???????# #??????# #???????????? | | ????????????# #???????# #??????# #???????????? | | ????????????# #???????# #??????# ########????? | | ???########## ######### @#??????# #????? | | ???# #??????# ###### #????? | | ???# #??????# #????# #????? | | ???# ####### #############??????# #????# #????? | | ???# #?????# #??????????????????# ###### ###### | | ???# #?????# #??????????????????# | | ???# #?????# #??????????????????# | | ???# #?????# #??????????????????# | | ???# #????? ??????????????????########## ###+## | | ???# #?????###???????????????????????????# #?? #? | | ???# #???????????????????????????????????# #???#? | | ???# #???????????????????????????????????# ###### | | ?### #???????????????????????????????????# ## # | | ?# #???????????????????????????????????# ## # | | ?# #???????????????????????????????????# | | ?# #???????????????????????????????????######## | | ?######??????????????????????????????????????????? | | ?????????????????????????????????????????????????? | | ?????????????????????????????????????????????????? | | ?????????????????????????????????????????????????? | | ?????????????????????????????????????????????????? | | ?????????????????????????????????????????????????? | | ?????????????????????????????????????????????????? | | ?????????????????????????????????????????????????? | | ?????????????????????????????????????????????????? | +----------------------------------------------------+ Best States ------------- Heat Dissipation 28 Energy Generation 10 Energy Capacity 250 Matter Stores 241 Matter Capacity 300 Sight Range 18 Robot Scan Range 10 Terrain Scan Density 85 Evasion (%) 62 Item Schematics ----------------- None Robot Schematics ------------------ None Fabricated ------------ Nothing Alien Tech Used ----------------- None Achievements -------------- Cya! Challenges ------------ None Game ------ Seed MachineDisposableMeganuke Manual? 0 Play Time 00:26:20 Cumulative 6.0 hours Start 2022.03.13 @ 11:19:22 End 2022.03.13 @ 12:00:39 Sessions 1 Manual Loads 0 Difficulty Rogue Special Mode None Game No. 9 Rogue 9 Adventurer 0 Explorer 0 Win Type - Total 0 Types 0/0/0/0/0/0/0/0/0 Lore% 12 Gallery% 11 Achievement% 8 Wizard Run 0 Options --------- ASCII 0 Keyboard 0 Movement Mouse Keybinds 0 Fullscreen 2 Font 18/SmallcapsGlow Map View 76x50 Tactical HUD 1 Map Filters NONE Filters NONE Steam 1 RUN: 8aee71e6-1199-4688-bdca-17a613b6df8e